bitfinex-derivatives/quotes_SOLF0:USTF0_20220104
["timestamp","ask_amount","ask_price","bid_price","bid_amount"]
[1641303217864,3.0,171.33,171.26,12.793]
[1641303218063,11.65402858,171.34,171.26,12.793]
[1641303218463,8.65402858,171.34,171.26,12.793]
[1641303219063,14.48986646,171.34,171.26,12.793]
[1641303219264,17.48986646,171.34,171.26,12.793]
[1641303219463,3.0,171.32,171.26,12.793]
[1641303219664,5.83720048,171.3,171.26,12.793]
[1641303220064,8.83720048,171.3,171.26,12.793]
[1641303220265,8.83720048,171.3,171.26,6.0]
[1641303220466,5.83720048,171.3,171.26,6.0]
[1641303220667,32.89945254,171.32,171.26,6.0]
[1641303221267,41.55348112,171.32,171.26,6.0]
[1641303221467,41.55348112,171.32,171.28,27.66479]
[1641303222068,14.48986646,171.34,171.28,27.66479]
[1641303225173,8.65402858,171.34,171.28,27.66479]
[1641303226173,27.66479,171.35,171.28,27.66479]
[1641303227176,8.65254982,171.34,171.28,27.66479]
[1641303227774,8.65254982,171.34,171.29,0.658185]
[1641303228174,3.0,171.32,171.29,0.658185]
[1641303228575,9.807,171.32,171.27,0.658185]
[1641303228774,3.0,171.31,171.27,0.658185]
[1641303228974,8.83685977,171.31,171.27,0.658185]
[1641303229174,5.83685977,171.31,171.27,0.658185]
[1641303229375,8.83685977,171.31,171.27,0.658185]
[1641303229577,27.66479,171.28,171.22,7.80158691]
[1641303230077,27.66479,171.28,171.19,35.46637691]
[1641303230978,8.65254982,171.27,171.19,27.66479]
[1641303231178,8.65254982,171.27,171.2,0.65840721]
[1641303231780,3.0,171.26,171.2,0.65840721]
[1641303232280,3.0,171.26,171.17,0.65840721]
[1641303232479,55.32958,171.28,171.17,8.46011465]
[1641303232880,58.32958,171.28,171.17,8.46011465]
[1641303233281,55.32958,171.28,171.18,0.65840721]
[1641303233482,58.32958,171.28,171.18,0.65840721]
[1641303234082,3.0,171.27,171.18,0.65840721]
[1641303234284,3.0,171.26,171.18,0.65840721]
[1641303234484,7.801,171.27,171.18,0.65840721]
[1641303234687,3.0,171.22,171.18,0.65840721]
[1641303235285,3.0,171.22,171.2,6.0]
[1641303235584,27.66479,171.21,171.2,6.0]
[1641303235785,30.66479,171.21,171.2,0.0001]
[1641303238588,27.66479,171.21,171.2,0.0001]
[1641303239794,30.66479,171.21,171.2,0.0001]
[1641303239992,27.66479,171.21,171.2,0.0001]
[1641303240392,30.66479,171.21,171.2,0.0001]
[1641303242395,27.66479,171.21,171.2,0.0001]
[1641303242994,30.66479,171.21,171.2,0.0001]
[1641303243195,27.66479,171.21,171.2,0.0001]
[1641303243394,30.66479,171.21,171.2,0.0001]
[1641303243796,58.32958,171.21,171.2,0.0001]
[1641303244193,64.16967811,171.21,171.2,0.0001]
[1641303244596,61.16967811,171.21,171.2,0.0001]
[1641303246500,64.16967811,171.21,171.2,0.0001]
[1641303250504,61.16967811,171.21,171.2,0.0001]
[1641303251603,64.16967811,171.21,171.2,0.0001]
[1641303252103,61.16967811,171.21,171.2,0.0001]
[1641303252304,64.16967811,171.21,171.2,0.0001]
[1641303252504,61.16967811,171.21,171.2,0.0001]
[1641303252805,64.16967811,171.21,171.2,0.0001]
[1641303253205,64.16967811,171.21,171.2,1.8967666]
[1641303253707,64.16967811,171.21,171.2,0.65865957]
[1641303254507,64.16967811,171.21,171.2,2.55532617]
[1641303255411,64.16967811,171.21,171.17,12.34930269]
[1641303255612,3.0,171.18,171.17,12.34930269]
[1641303255810,7.459,171.18,171.17,12.34930269]
[1641303256010,7.459,171.18,171.15,12.34930269]
[1641303256211,3.0,171.16,171.15,12.34930269]
[1641303256610,3.0,171.16,171.15,13.00796979]
[1641303256810,3.0,171.16,171.15,0.6586671]
[1641303257711,3.0,171.17,171.15,0.6586671]
[1641303258311,3.0,171.16,171.15,0.6586671]
[1641303260313,30.66479,171.16,171.15,0.6586671]
[1641303261113,27.66479,171.16,171.15,0.6586671]
[1641303261713,27.66479,171.16,171.11,0.6586671]
[1641303261913,30.66479,171.16,171.11,0.6586671]
[1641303262114,3.0,171.14,171.11,0.6586671]
[1641303263217,3.0,171.13,171.11,0.6586671]
[1641303263418,3.0,171.12,171.11,0.6586671]
[1641303263717,3.0,171.12,171.08,12.34930269]
[1641303263918,3.0,171.11,171.08,12.34930269]
[1641303264318,30.66479,171.12,171.08,12.34930269]
[1641303264519,30.66479,171.12,171.05,12.34930269]
[1641303265119,27.66479,171.12,171.05,12.34930269]
[1641303265320,40.01409269,171.12,171.05,12.34930269]
[1641303266321,27.66479,171.08,171.05,12.34930269]
[1641303267123,3.0,171.11,171.06,0.65893217]
[1641303267323,40.01409269,171.12,171.06,0.65893217]
[1641303267324,3.0,171.1,171.06,0.65893217]
[1641303267525,3.0,171.11,171.06,0.65893217]
[1641303267823,3.0,171.11,171.04,12.34930269]
[1641303267824,43.01409269,171.12,171.05,0.65893217]
[1641303270329,30.66479,171.12,171.06,12.34930269]
[1641303270832,30.66479,171.12,171.07,0.65893217]
[1641303271330,27.66479,171.12,171.07,0.65893217]
[1641303271931,33.50778863,171.13,171.07,0.65893217]
[1641303272131,33.50778863,171.13,171.06,21.15430269]
[1641303272430,5.84299863,171.13,171.06,48.81909269]
[1641303272631,5.84299863,171.13,171.12,4.11794859]
[1641303273232,8.84299863,171.13,171.09,12.34930269]
[1641303273432,3.0,171.12,171.09,12.34930269]
[1641303273931,3.0,171.11,171.09,12.34930269]
[1641303274132,3.0,171.11,171.06,12.34930269]
[1641303274431,21.66479,171.08,171.06,12.34930269]
[1641303275333,27.66479,171.1,171.06,12.34930269]
[1641303275935,5.84299863,171.13,171.06,15.34930269]
[1641303276334,5.84299863,171.13,171.06,12.34930269]
[1641303276535,5.84299863,171.13,171.07,27.66479]
[1641303277136,5.84299863,171.13,171.07,40.01409269]
[1641303277335,5.84299863,171.13,171.07,12.34930269]
[1641303277836,18.19230132,171.13,171.06,12.34930269]
[1641303278538,5.84299863,171.13,171.07,12.34930269]
[1641303278736,12.34930269,171.15,171.07,15.34930269]
[1641303278936,12.34930269,171.15,171.07,21.82330269]
[1641303279339,12.34930269,171.15,171.1,3.0]
[1641303279537,12.34930269,171.15,171.14,3.0]
[1641303279737,12.34930269,171.15,171.14,7.82]
[1641303279940,12.34930269,171.17,171.14,7.82]
[1641303280238,12.34930269,171.17,171.15,3.0]
[1641303280439,12.34930269,171.17,171.16,27.66479]
[1641303281040,32.89945254,171.21,171.16,27.66479]
[1641303281241,12.34930269,171.22,171.16,27.66479]
[1641303281738,18.18923027,171.22,171.16,27.66479]
[1641303281938,3.0,171.18,171.14,40.01409269]
[1641303282438,30.66479,171.21,171.14,40.01409269]
[1641303282640,43.01409269,171.21,171.14,27.66479]
[1641303283138,40.01409269,171.21,171.14,27.66479]
[1641303283338,43.01409269,171.21,171.14,27.66479]
[1641303284541,5.84078033,171.19,171.14,27.66479]
[1641303284841,5.84078033,171.19,171.14,33.66479]
[1641303284842,23.80708302,171.19,171.14,33.66479]
[1641303285543,26.80708302,171.19,171.14,33.66479]
[1641303285844,12.34930269,171.18,171.14,6.0]
[1641303286245,15.34930269,171.18,171.14,6.0]
[1641303286844,12.34930269,171.18,171.14,6.0]
[1641303289848,18.19008302,171.19,171.14,6.0]
[1641303292952,12.34930269,171.17,171.14,6.0]
[1641303294052,8.84078033,171.19,171.14,6.0]
[1641303294451,5.84078033,171.19,171.14,6.0]
[1641303294651,12.35030356,171.18,171.14,6.0]
[1641303295852,14.62457603,171.18,171.14,6.0]
[1641303296854,5.84078033,171.19,171.14,6.0]
[1641303297554,14.6241477,171.18,171.14,6.0]
[1641303298255,5.84078033,171.19,171.14,6.0]
[1641303298956,14.62416881,171.18,171.14,6.0]
[1641303299559,14.62416881,171.18,171.14,9.0]
[1641303299760,2.27419089,171.18,171.14,9.0]
[1641303299960,12.34912942,171.2,171.15,1.84252498]
[1641303300258,12.34912942,171.2,171.15,8.49652498]
[1641303300860,14.62243762,171.22,171.17,27.66479]
[1641303301761,14.62243762,171.22,171.18,1.84252498]
[1641303303766,12.34912942,171.22,171.18,1.84252498]
[1641303304367,12.34677317,171.23,171.18,1.84252498]
[1641303307167,15.34677317,171.23,171.18,1.84252498]
[1641303307367,12.34677317,171.23,171.17,27.66479]
[1641303307571,12.34677317,171.21,171.17,27.66479]
[1641303307968,15.34677317,171.21,171.17,27.66479]
[1641303308169,15.34945277,171.19,171.11,12.34930269]
[1641303308368,18.40145277,171.19,171.18,6.0]
[1641303308568,18.40145277,171.19,171.11,12.34930269]
[1641303308968,18.40145277,171.19,171.13,27.66479]
[1641303309369,12.34945277,171.17,171.13,27.66479]
[1641303310168,2.2733082,171.18,171.13,27.66479]
[1641303310368,5.2733082,171.18,171.13,27.66479]
[1641303310569,2.2733082,171.18,171.13,27.66479]
[1641303311270,14.62440608,171.17,171.13,27.66479]
[1641303311868,12.35109788,171.17,171.13,27.66479]
[1641303312069,5.27471393,171.18,171.13,27.66479]
[1641303312671,14.62605085,171.17,171.13,27.66479]
[1641303314277,9.755,171.18,171.13,27.66479]
[1641303314974,14.62639176,171.17,171.13,27.66479]
[1641303317177,12.35156574,171.17,171.13,27.66479]
[1641303318079,14.62639176,171.17,171.13,27.66479]
[1641303318581,12.35156574,171.16,171.13,27.66479]
[1641303319481,3.0,171.15,171.13,27.66479]
[1641303319682,3.0,171.14,171.08,12.34930269]
[1641303319882,6.684,171.14,171.08,12.34930269]
[1641303320084,9.684,171.14,171.08,12.34930269]
[1641303320282,3.0,171.13,171.08,12.34930269]
[1641303320483,17.6313113,171.13,171.05,21.84931514]
[1641303320687,3.0,171.1,171.05,21.84931514]
[1641303320885,3.0,171.09,171.05,3.84931514]
[1641303321086,3.0,171.06,171.05,3.84931514]
[1641303321285,9.338,171.06,171.01,32.89945254]
[1641303321486,34.00279,171.06,170.97,60.56424254]
[1641303322285,6.338,171.06,171.0,3.0]
[1641303322486,5.84402303,171.1,171.0,3.0]
[1641303322688,5.84402303,171.1,170.99,5.188]
[1641303322886,38.74347557,171.1,170.99,5.188]
[1641303323286,38.74347557,171.1,171.02,3.0]
[1641303323487,60.56424254,171.11,171.03,27.66479]
[1641303323687,60.56424254,171.11,171.04,3.0]
[1641303323888,60.56424254,171.11,171.03,31.78479]
[1641303324089,60.56424254,171.11,171.03,34.78479]
[1641303324289,60.56424254,171.11,171.03,31.78479]
[1641303324489,27.66479,171.11,171.03,31.78479]
[1641303325590,5.84299863,171.13,171.03,59.44958]
[1641303328293,5.84299863,171.13,171.04,3.0]
[1641303328495,5.84299863,171.13,171.05,3.0]
[1641303328692,5.84299863,171.13,171.04,3.0]
[1641303329494,5.84299863,171.13,171.03,68.44958]
[1641303331894,5.84299863,171.13,171.03,65.44958]
[1641303333696,5.84299863,171.13,171.06,4.11915935]
[1641303334399,38.74245117,171.13,171.05,4.11915935]
[1641303335101,3.0,171.12,171.05,4.11915935]
[1641303335300,5.907,171.12,171.05,4.11915935]
[1641303337305,8.907,171.12,171.05,4.11915935]
[1641303337505,27.66479,171.1,171.05,4.11915935]
[1641303338306,27.66479,171.1,171.05,10.11915935]
[1641303340709,38.74245117,171.13,171.05,10.11915935]
[1641303340910,41.74245117,171.13,171.05,10.11915935]
[1641303341410,41.74245117,171.13,171.06,4.11915935]
[1641303341709,27.66479,171.1,171.06,4.11915935]
[1641303341909,33.64879,171.1,171.06,4.11915935]
[1641303342109,36.64879,171.1,171.06,4.11915935]
[1641303342309,33.64879,171.1,171.05,10.11915935]
[1641303345212,5.984,171.1,171.05,10.11915935]
[1641303345412,32.89945254,171.12,171.05,10.11915935]
[1641303345812,32.89945254,171.12,171.05,6.0]
[1641303346614,47.99448077,171.13,171.06,4.11915935]
[1641303348218,15.09502823,171.13,171.06,4.11915935]
[1641303348417,9.2520296,171.13,171.06,4.11915935]
[1641303348618,9.2520296,171.13,171.07,3.0]
[1641303348820,9.2520296,171.13,171.07,8.23]
[1641303349619,9.2520296,171.13,171.09,27.66479]
[1641303350218,32.89945254,171.16,171.09,27.66479]
[1641303350420,32.89945254,171.16,171.11,3.0]
[1641303350619,32.89945254,171.16,171.13,3.0]
[1641303350818,32.89945254,171.16,171.12,3.0]
[1641303351219,32.89945254,171.16,171.13,3.0]
[1641303351420,12.3538857,171.15,171.12,7.11915935]
[1641303351621,12.3538857,171.15,171.14,27.66479]
[1641303352420,12.3538857,171.16,171.14,27.66479]
[1641303353222,12.3538857,171.17,171.14,27.66479]
[1641303353625,12.3538857,171.17,171.14,30.66479]
[1641303353823,8.57e-05,171.17,171.14,30.66479]
[1641303354825,8.57e-05,171.17,171.16,3.0]
[1641303355026,42.15148214,171.23,171.16,7.11915935]
[1641303355226,42.15148214,171.23,171.17,3.0]
[1641303355426,42.15148214,171.23,171.16,4.11915935]
[1641303356526,9.2520296,171.23,171.16,4.11915935]
[1641303357029,60.56424254,171.24,171.16,4.11915935]
[1641303357228,27.66479,171.24,171.14,27.66479]
[1641303357629,3.29380629,171.23,171.14,55.32958]
[1641303357829,32.89945254,171.22,171.15,4.11915935]
[1641303359633,32.89945254,171.22,171.18,27.66479]
[1641303359832,32.89945254,171.23,171.18,27.66479]
[1641303360032,32.89945254,171.23,171.15,4.11915935]
[1641303361333,32.89945254,171.23,171.15,5.79971005]
[1641303361536,35.33595327,171.23,171.15,5.79971005]
[1641303361733,35.33595327,171.23,171.17,27.66479]
[1641303362137,2.43650073,171.23,171.17,27.66479]
[1641303362735,35.33595327,171.23,171.17,27.66479]
[1641303363135,3.29402305,171.22,171.17,27.66479]
[1641303363535,3.29402305,171.22,171.16,4.11915935]
[1641303364235,35.33595327,171.21,171.14,27.66479]
[1641303364935,38.62997632,171.2,171.14,27.66479]
[1641303365235,35.33595327,171.2,171.14,27.66479]
[1641303365536,5.84078033,171.19,171.14,27.66479]
[1641303366236,8.27728106,171.19,171.14,27.66479]
[1641303366937,2.43650073,171.18,171.14,27.66479]
[1641303367137,2.43650073,171.18,171.14,30.66479]
[1641303367340,2.43650073,171.18,171.14,27.66479]
[1641303367536,2.43650073,171.18,171.14,30.66479]
[1641303367737,2.43650073,171.18,171.14,27.66479]
[1641303367939,2.43650073,171.17,171.14,34.78394935]
[1641303368338,2.43650073,171.17,171.14,40.78394935]
[1641303368639,2.43650073,171.17,171.15,4.11915935]
[1641303368841,2.43650073,171.16,171.15,5.91075279]
[1641303369040,0.00010073,171.16,171.15,5.91075279]
[1641303369442,32.89945254,171.23,171.15,5.91075279]
[1641303369642,3.29404701,171.22,171.15,5.91075279]
[1641303370042,36.19349955,171.22,171.15,5.91075279]
[1641303370442,32.89945254,171.22,171.15,5.91075279]
[1641303371443,32.89945254,171.23,171.15,5.91075279]
[1641303371843,3.29397739,171.22,171.15,5.91075279]
[1641303372244,36.19342993,171.22,171.15,5.91075279]
[1641303372645,32.89945254,171.22,171.15,5.91075279]
[1641303372846,32.89945254,171.22,171.15,4.11915935]
[1641303373047,32.89945254,171.22,171.14,37.78394935]
[1641303373247,39.22445254,171.22,171.14,37.78394935]
[1641303374350,3.29414147,171.21,171.14,37.78394935]
[1641303374953,39.22445254,171.22,171.14,37.78394935]
[1641303378055,6.325,171.22,171.15,4.11915935]
[1641303378355,42.14164991,171.23,171.15,4.11915935]
[1641303378756,32.89945254,171.22,171.14,37.78394935]
[1641303379356,37.19645254,171.22,171.14,37.78394935]
[1641303380358,3.29418672,171.21,171.14,37.78394935]
[1641303380556,36.19363926,171.21,171.14,37.78394935]
[1641303380758,32.89945254,171.21,171.14,37.78394935]
[1641303381757,32.89945254,171.21,171.14,40.78394935]
[1641303381959,32.89945254,171.21,171.16,3.0]
[1641303382161,32.89945254,171.22,171.15,3.0]
[1641303382859,32.89945254,171.22,171.17,3.0]
[1641303383260,32.89945254,171.22,171.16,3.0]
[1641303383661,42.14164991,171.25,171.18,27.66479]
[1641303384365,12.35072179,171.21,171.18,27.66479]
[1641303385563,12.35072179,171.21,171.18,30.66479]
[1641303385765,4.11258046,171.19,171.18,58.32958]
[1641303386164,4.11258046,171.19,171.18,55.32958]
[1641303386765,9.24219737,171.25,171.18,55.32958]
[1641303387366,9.24219737,171.25,171.18,62.44873935]
[1641303387767,9.24219737,171.25,171.21,27.66479]
[1641303395775,32.89945254,171.28,171.21,27.66479]
[1641303396177,32.89945254,171.28,171.21,30.66479]
[1641303396377,3.29295552,171.27,171.21,30.66479]
[1641303396576,3.29295552,171.27,171.22,3.0]
[1641303397778,3.29295552,171.27,171.24,27.66479]
[1641303398579,3.29295552,171.27,171.24,34.26979]
[1641303401483,32.89945254,171.28,171.24,34.26979]
[1641303402683,3.29275655,171.27,171.24,34.26979]
[1641303403085,32.89945254,171.28,171.24,34.26979]
[1641303404085,21.98963203,171.29,171.24,34.26979]
[1641303404086,42.14164991,171.29,171.24,34.26979]
[1641303405288,42.14164991,171.29,171.24,27.66479]
[1641303405889,3.29273482,171.28,171.24,27.66479]
[1641303406492,3.29273482,171.28,171.23,4.11915935]
[1641303406690,36.19218736,171.28,171.22,6.0]
[1641303406890,42.02989898,171.28,171.22,6.0]
[1641303407089,45.02989898,171.28,171.2,4.11915935]
[1641303407290,3.29273482,171.27,171.2,4.11915935]
[1641303407489,6.29273482,171.27,171.2,4.11915935]
[1641303407691,3.29273482,171.27,171.2,4.11915935]
[1641303407892,27.66479,171.24,171.2,4.11915935]
[1641303408092,27.66479,171.24,171.18,4.11915935]
[1641303408491,97.75315254,171.26,171.18,4.11915935]
[1641303408793,9.24219737,171.23,171.18,4.11915935]
[1641303409591,2.19168701,171.22,171.18,4.11915935]
[1641303410194,2.19164395,171.24,171.18,4.11915935]
[1641303411396,2.19164395,171.24,171.17,4.11915935]
[1641303411797,4.11649615,171.19,171.18,31.78394935]
[1641303412198,2.19164395,171.24,171.2,1.88350385]
[1641303413301,9.24219737,171.25,171.2,1.88350385]
[1641303413901,2.18809759,171.24,171.2,1.88350385]
[1641303415801,2.18809759,171.24,171.21,27.66479]
[1641303416002,12.34837149,171.24,171.21,27.66479]
[1641303416804,10.77539196,171.25,171.21,27.66479]
[1641303417406,12.34898053,171.23,171.21,27.66479]
[1641303419410,12.34898053,171.24,171.21,27.66479]
[1641303420511,10.77539196,171.25,171.21,27.66479]
[1641303421111,12.3482586,171.24,171.21,32.85879]
[1641303422015,2.18809759,171.25,171.21,32.85879]
[1641303422221,2.18809759,171.25,171.22,1.96200305]
[1641303423017,12.34729237,171.26,171.22,1.96200305]
[1641303425920,12.34729237,171.26,171.23,3.0]
[1641303426121,10.64095769,171.28,171.23,3.0]
[1641303426321,10.64095769,171.28,171.22,11.28200305]
[1641303426721,10.64095769,171.28,171.26,3.0]
[1641303426923,12.3467206,171.27,171.26,9.781]
[1641303427127,12.3467206,171.27,171.26,6.781]
[1641303427723,12.3467206,171.3,171.26,8.74300305]
[1641303427924,12.3467206,171.3,171.28,27.66479]
[1641303428723,12.34353149,171.31,171.28,27.66479]
[1641303429726,12.3441661,171.3,171.28,27.66479]
[1641303429925,12.3441661,171.3,171.25,27.66479]
[1641303430224,32.89945254,171.34,171.26,1.96220683]
[1641303430624,3.29125839,171.33,171.26,1.96220683]
[1641303431426,12.34401386,171.3,171.26,1.96220683]
[1641303432026,12.34401386,171.3,171.28,27.66479]
[1641303432230,12.34380757,171.31,171.28,27.66479]
[1641303435228,12.34380757,171.31,171.28,31.94279]
[1641303435628,12.34380757,171.31,171.29,3.0]
[1641303435829,12.34380757,171.31,171.28,34.94279]
[1641303436032,12.34380757,171.31,171.29,3.0]
[1641303436233,12.34380757,171.31,171.28,34.94279]
[1641303436433,12.34380757,171.31,171.29,3.0]
[1641303436633,12.34380757,171.31,171.28,31.94279]
[1641303436833,12.34380757,171.32,171.28,34.94279]
[1641303437633,10.64095769,171.35,171.28,34.94279]
[1641303438133,10.64095769,171.35,171.32,27.66479]
[1641303438735,12.34043152,171.33,171.32,27.66479]
[1641303439534,10.64095769,171.35,171.32,27.66479]
[1641303440238,12.34047809,171.33,171.32,27.66479]
[1641303443340,2.15375894,171.36,171.32,27.66479]
[1641303444141,12.34045449,171.33,171.32,27.66479]
[1641303445445,16.80745449,171.33,171.32,27.66479]
[1641303445846,4.467,171.33,171.32,27.66479]
[1641303446045,6.62075894,171.33,171.32,27.66479]
[1641303447646,9.91194409,171.33,171.32,27.66479]
[1641303448149,9.91194409,171.33,171.28,27.66479]
[1641303448545,6.62075894,171.33,171.28,27.66479]
[1641303448746,12.34179567,171.31,171.28,27.66479]
[1641303450549,12.34179567,171.32,171.28,27.66479]
[1641303451251,10.64095769,171.34,171.28,27.66479]
[1641303451449,10.64095769,171.34,171.28,30.66479]
[1641303451648,12.34091656,171.32,171.28,30.66479]
[1641303451850,12.34091656,171.32,171.28,27.66479]
[1641303452048,49.39371841,171.41,171.31,3.0]
[1641303452249,49.39371841,171.41,171.38,27.66479]
[1641303452448,49.39371841,171.41,171.38,31.87879]
[1641303452648,2.14915481,171.39,171.38,31.87879]
[1641303453449,12.33577673,171.41,171.38,34.87879]
[1641303453650,32.89540461,171.45,171.38,34.87879]
[1641303453850,1.65087431,171.44,171.38,36.84156076]
[1641303454250,1.65087431,171.44,171.38,33.84156076]
[1641303454650,1.65087431,171.44,171.38,36.84156076]
[1641303455051,1.65087431,171.44,171.38,33.84156076]
[1641303455253,63.0725,171.47,171.38,31.87879]
[1641303455754,63.0725,171.47,171.38,34.87879]
[1641303455954,3.28902899,171.46,171.38,34.87879]
[1641303456352,59.78360123,171.47,171.38,34.87879]
[1641303457656,59.78360123,171.47,171.46,32.89945254]
[1641303457854,27.66479,171.52,171.46,38.59045254]
[1641303458256,33.4933148,171.55,171.46,66.25524254]
[1641303458454,27.66479,171.55,171.49,32.89945254]
[1641303458654,3.28836428,171.51,171.49,32.89945254]
[1641303458854,3.28836428,171.54,171.49,32.89945254]
[1641303459857,3.28836428,171.56,171.52,32.89945254]
[1641303460059,3.28836428,171.56,171.52,38.12445254]
[1641303460758,62.3043,171.61,171.54,32.89945254]
[1641303460958,62.7326,171.65,171.54,32.89945254]
[1641303461357,3.28673638,171.64,171.54,32.89945254]
[1641303461556,6.28673638,171.64,171.54,32.89945254]
[1641303461759,3.28673638,171.64,171.54,32.89945254]
[1641303462258,3.28673638,171.64,171.55,0.65725277]
[1641303463057,5.82580833,171.63,171.55,0.65725277]
[1641303463257,3.0,171.62,171.55,0.65725277]
[1641303463459,5.82699647,171.6,171.55,0.65725277]
[1641303463658,3.0,171.56,171.54,32.89945254]
[1641303463860,6.235,171.58,171.54,5.254e-05]
[1641303464061,5.82699647,171.6,171.54,5.254e-05]
[1641303464262,27.66479,171.58,171.54,5.254e-05]
[1641303464662,3.0,171.55,171.5,27.66479]
[1641303464961,3.0,171.54,171.51,0.65748337]
[1641303465362,3.28741687,171.53,171.51,0.65748337]
[1641303465963,3.0,171.54,171.5,0.65748337]
[1641303467363,3.2874583,171.53,171.5,0.65748337]
[1641303469766,3.2874583,171.53,171.49,0.65748337]
[1641303470569,3.2874583,171.53,171.48,0.65748337]
[1641303470968,3.2874583,171.53,171.46,0.65748337]
[1641303471371,9.2474583,171.53,171.46,0.65748337]
[1641303471570,12.2474583,171.53,171.46,0.65748337]
[1641303471770,6.2874583,171.52,171.45,0.65748337]
[1641303471970,3.0,171.49,171.45,0.65748337]
[1641303472170,4.228,171.49,171.45,0.65748337]
[1641303473271,4.228,171.49,171.45,9.11647588]
[1641303473774,4.228,171.49,171.46,0.65748337]
[1641303474175,3.2885029,171.48,171.46,0.65748337]
[1641303474674,3.2885029,171.48,171.45,4.11011649]
[1641303474873,6.2885029,171.48,171.45,4.76783137]
[1641303475273,3.0,171.46,171.43,4.1105371]
[1641303475473,8.83107379,171.48,171.43,3.71e-05]
[1641303475973,3.28905804,171.45,171.44,0.65781161]
[1641303476173,3.28905804,171.47,171.39,0.65781161]
[1641303476375,27.66479,171.43,171.39,0.65781161]
[1641303478774,33.49739426,171.43,171.39,0.65781161]
[1641303479575,3.28959451,171.42,171.39,0.65781161]
[1641303479975,27.66479,171.43,171.39,0.65781161]
[1641303481078,27.66479,171.43,171.39,6.86481161]
[1641303481976,27.66479,171.43,171.4,0.65781161]
[1641303482476,27.66479,171.43,171.39,0.65781161]
[1641303483076,12.29996817,171.45,171.39,0.65781161]
[1641303483276,12.29996817,171.45,171.39,6.96881161]
[1641303483476,27.66479,171.46,171.39,6.96881161]
[1641303483777,27.66479,171.46,171.4,0.65781161]
[1641303483979,81.95887196,171.48,171.4,0.65781161]
[1641303484381,69.65890379,171.48,171.4,0.65781161]
[1641303484680,30.95343473,171.47,171.4,0.65781161]
[1641303485180,27.66479,171.47,171.4,0.65781161]
[1641303485380,27.66479,171.47,171.41,3.0]
[1641303485581,27.66479,171.47,171.42,0.65781161]
[1641303486183,27.66479,171.47,171.4,0.65781161]
[1641303487885,12.29996817,171.46,171.4,0.65781161]
[1641303488485,12.29996817,171.46,171.4,2.54131546]
[1641303488986,12.29996817,171.46,171.41,0.65781161]
[1641303490889,3.0,171.45,171.41,0.65781161]
[1641303491089,6.28923233,171.45,171.41,0.65781161]
[1641303491288,18.5892005,171.45,171.41,0.65781161]
[1641303491588,3.28923233,171.44,171.41,0.65781161]
[1641303492290,12.29996817,171.43,171.41,0.65781161]
[1641303492491,27.66479,171.42,171.41,0.65781161]
[1641303493395,12.29996817,171.43,171.41,0.65781161]
[1641303493593,12.29996817,171.43,171.41,5.88181161]
[1641303493795,2.04096345,171.42,171.41,5.88181161]
[1641303494596,2.04096345,171.46,171.41,2.72839185]
[1641303494894,2.04096345,171.46,171.42,0.65781161]
[1641303495695,2.04096345,171.46,171.42,2.72839185]
[1641303496295,2.04096345,171.46,171.43,0.65781161]
[1641303496496,2.04096345,171.49,171.43,2.72839185]
[1641303496998,2.04096345,171.49,171.44,0.65781161]
[1641303497197,2.04096345,171.49,171.44,2.72839185]
[1641303497397,14.34093162,171.51,171.44,2.72839185]
[1641303497905,14.34093162,171.51,171.45,0.65781161]
[1641303498299,12.29996817,171.49,171.45,2.72839185]
[1641303498699,39.96475817,171.49,171.46,0.65781161]
[1641303499103,12.29996817,171.47,171.46,0.65781161]
[1641303499700,12.29996817,171.47,171.4,1.88350385]
[1641303499701,14.34093162,171.47,171.41,0.65781161]
[1641303500502,2.04096345,171.48,171.41,0.65781161]
[1641303501704,2.04096345,171.48,171.42,3.0]
[1641303501904,2.04096345,171.48,171.43,3.0]
[1641303502106,2.04096345,171.48,171.43,3.65781161]
[1641303502306,2.04096345,171.48,171.43,0.65781161]
[1641303502506,2.04096345,171.48,171.44,3.65781161]
[1641303502805,2.04096345,171.48,171.45,27.66479]
[1641303503005,12.29996817,171.51,171.45,28.32260161]
[1641303503205,3.0,171.54,171.45,28.32260161]
[1641303503406,3.0,171.54,171.46,0.65781161]
[1641303503807,3.28812675,171.53,171.46,0.65781161]
[1641303504409,5.31748438,171.53,171.46,0.65781161]
[1641303505108,2.02935763,171.53,171.46,0.65781161]